fUST/lending_fUST_20250906
["ID","MTS","AMOUNT","RATE_DAILY","PERIOD"]
[383703896,1757094660879,-480.0,0.0001452,2]
[383703897,1757094660889,-480.0,0.0001452,2]
[383703898,1757094660899,-480.0,0.0001452,2]
[383703899,1757094660909,-480.0,0.0001452,2]
[383703900,1757094660919,-480.0,0.0001452,2]
[383703901,1757094660929,-480.0,0.0001452,2]
[383703902,1757094660938,-548.977681,0.0001452,2]
[383703903,1757094660948,-500.3,0.0001452,2]
[383703904,1757094660957,-480.0,0.0001452,2]
[383703905,1757094660966,-480.0,0.0001452,2]
[383703906,1757094660977,-2898.97,0.0001452,2]
[383703907,1757094660986,-548.977681,0.0001452,2]
[383703908,1757094660997,-548.977681,0.0001452,2]
[383703909,1757094661007,-480.0,0.0001452,2]
[383703910,1757094661016,-151.0,0.0001452,2]
[383703911,1757094661026,-655.44,0.0001452,2]
[383703912,1757094661036,-151.0,0.0001452,2]
[383703913,1757094661045,-548.977681,0.0001452,2]
[383703914,1757094661054,-480.0,0.0001452,2]
[383703915,1757094661064,-480.0,0.0001452,2]
[383703916,1757094661073,-190.027662,0.0001452,2]
[383703917,1757094661083,-480.0,0.0001452,2]
[383703918,1757094661093,-151.0,0.0001452,2]
[383703919,1757094661103,-4096.38,0.0001452,2]
[383703920,1757094661114,-186.857002,0.0001452,2]
[383703921,1757094661124,-480.0,0.0001452,2]
[383703922,1757094661135,-585.41891932,0.0001452,2]
[383703923,1757094661145,-186.857002,0.0001452,2]
[383703924,1757094661155,-480.0,0.0001452,2]
[383703925,1757094661165,-480.0,0.0001452,2]
[383703926,1757094661178,-186.857002,0.0001452,2]
[383703927,1757094661189,-480.0,0.0001452,2]
[383703928,1757094661200,-480.0,0.0001452,2]
[383703929,1757094661210,-186.857002,0.0001452,2]
[383703930,1757094661220,-1184.53,0.0001452,2]
[383703931,1757094661230,-1116.44,0.0001452,2]
[383703932,1757094661241,-480.0,0.0001452,2]
[383703933,1757094661252,-480.0,0.0001452,2]
[383703934,1757094661262,-480.0,0.0001452,2]
[383703935,1757094661273,-1910.81,0.0001452,2]
[383703936,1757094661283,-627.89,0.0001452,2]
[383703937,1757094661293,-927.22,0.0001452,2]
[383703938,1757094661304,-480.0,0.0001452,2]
[383703939,1757094661314,-151.0,0.0001452,2]
[383703940,1757094661324,-480.0,0.0001452,2]
[383703941,1757094661334,-480.0,0.0001452,2]
[383703942,1757094661343,-480.0,0.0001452,2]
[383703943,1757094661352,-480.0,0.0001452,2]
[383703944,1757094661362,-480.0,0.0001452,2]
[383703945,1757094661372,-1180.02,0.0001452,2]
[383703946,1757094661382,-420.0,0.0001452,2]
[383703947,1757094661391,-480.0,0.0001452,2]
[383703948,1757094661401,-480.0,0.0001452,2]
[383703949,1757094661410,-480.0,0.0001452,2]
[383703950,1757094661423,-480.0,0.0001452,2]
[383703951,1757094661433,-161.329675,0.0001452,2]
[383703952,1757094661442,-161.329675,0.0001452,2]
[383703953,1757094661452,-532.74,0.0001452,2]
[383703954,1757094661462,-161.329675,0.0001452,2]
[383703955,1757094661471,-480.0,0.0001452,2]
[383703956,1757094661481,-646.433611,0.0001452,2]
[383703957,1757094661491,-161.329675,0.0001452,2]
[383703958,1757094661501,-646.433611,0.0001452,2]
[383703959,1757094661511,-646.433611,0.0001452,2]
[383703960,1757094661521,-646.433611,0.0001452,2]
[383703961,1757094661532,-480.0,0.0001452,2]
[383703962,1757094661541,-608.71,0.0001452,2]
[383703963,1757094661551,-169.37809204,0.0001452,2]
[383703964,1757094661567,-155.761792,0.0001452,2]
[383703965,1757094661577,-2568.51,0.0001452,2]
[383703966,1757094661587,-480.0,0.0001452,2]
[383703967,1757094661598,-480.0,0.0001452,2]
[383703968,1757094661608,-480.0,0.0001452,2]
[383703969,1757094661618,-480.0,0.0001452,2]
[383703970,1757094661628,-480.0,0.0001452,2]
[383703971,1757094661639,-930.833446,0.0001452,2]
[383703972,1757094661649,-930.833446,0.0001452,2]
[383703973,1757094661659,-930.833446,0.0001452,2]
[383703974,1757094661671,-480.0,0.0001452,2]
[383703975,1757094661681,-480.0,0.0001452,2]
[383703976,1757094661691,-930.833446,0.0001452,2]
[383703977,1757094661701,-508.93,0.0001452,2]
[383703978,1757094661711,-480.0,0.0001452,2]
[383703979,1757094661721,-480.0,0.0001452,2]
[383703980,1757094661731,-1072.85,0.0001452,2]
[383703981,1757094661742,-480.0,0.0001452,2]
[383703982,1757094661751,-480.0,0.0001452,2]
[383703983,1757094661761,-1225.35,0.0001452,2]
[383703984,1757094661770,-520.18,0.0001452,2]
[383703985,1757094661780,-1185.83,0.0001452,2]
[383703986,1757094661847,-480.0,0.0001452,2]
[383703987,1757094661864,-480.0,0.0001452,2]
[383703988,1757094661874,-480.0,0.0001452,2]
[383703989,1757094661884,-898.48,0.0001452,2]
[383703990,1757094661894,-480.0,0.0001452,2]
[383703991,1757094661903,-456.81308376,0.0001452,2]
[383703992,1757094661913,-1084.52,0.0001452,2]
[383703993,1757094661923,-480.0,0.0001452,2]
[383703994,1757094661933,-480.0,0.0001452,2]
[383703995,1757094661943,-889.22,0.0001452,2]
[383703996,1757094661953,-480.0,0.0001452,2]
[383703997,1757094661963,-480.0,0.0001452,2]
[383703998,1757094661973,-399.54090219,0.0001452,2]
[383703999,1757094661983,-480.0,0.0001452,2]
[383704000,1757094661993,-344.07,0.0001452,2]
[383704001,1757094662003,-480.0,0.0001452,2]
[383704002,1757094662012,-7222.37,0.0001452,2]
[383704003,1757094662023,-480.0,0.0001452,2]
[383704004,1757094662033,-480.0,0.0001452,2]
[383704005,1757094662044,-480.0,0.0001452,2]
[383704006,1757094662054,-480.0,0.0001452,2]
[383704007,1757094662064,-480.0,0.0001452,2]
[383704008,1757094662073,-480.0,0.0001452,2]
[383704009,1757094662083,-151.0,0.0001452,2]
[383704010,1757094662092,-480.0,0.0001452,2]
[383704011,1757094662102,-539.09,0.0001452,2]
[383704012,1757094662112,-461.77366144,0.0001452,2]
[383704013,1757094662122,-480.0,0.0001452,2]
[383704014,1757094662132,-494.93,0.0001452,2]
[383704015,1757094662142,-480.0,0.0001452,2]
[383704016,1757094662153,-480.0,0.0001452,2]
[383704017,1757094662162,-180.0,0.0001452,2]
[383704018,1757094662174,-198.695499,0.0001452,2]
[383704019,1757094662184,-151.0,0.0001452,2]
[383704020,1757094662194,-151.0,0.0001452,2]
[383704021,1757094662204,-151.0,0.0001452,2]
[383704022,1757094662214,-258.655413,0.0001452,2]
[383704023,1757094662225,-500.0,0.00014521,2]
[383704024,1757094662235,-500.0,0.00014521,2]
[383704025,1757094662245,-497.74588806,0.00014521,2]
[383704026,1757094662255,-300.63066952,0.00014521,2]
[383704027,1757094662264,-1000.0,0.00014521,2]
[383704028,1757094662274,-500.0,0.00014521,2]
[383704029,1757094662283,-500.0,0.00014521,2]
[383704030,1757094662293,-500.88585365,0.00014521,2]
[383704031,1757094662303,-501.15603903,0.00014521,2]
[383704032,1757094662313,-500.0,0.00014521,2]
[383704033,1757094662323,-389.0,0.00014528,2]
[383704034,1757094662332,-420.0,0.00014544,2]
[383704035,1757094662342,-160.0,0.0001467,2]
[383704036,1757094662352,-160.0,0.00014676,2]
[383704037,1757094662361,-160.0,0.00014676,2]
[383704038,1757094662377,-3196.4248642,0.00014743,2]
[383704039,1757094662396,-251.164,0.00014768,2]
[383704040,1757094662411,-195.856412,0.00014768,2]
[383704041,1757094662431,-151.0,0.00014768,2]
[383704042,1757094662451,-151.0,0.00014768,2]
[383704043,1757094662467,-1500.0,0.00014768,2]
[383704044,1757094662485,-398.69175826,0.00014768,2]
[383704045,1757094662502,-37650.0748164,0.00014794,2]
[383704046,1757094662516,-344.1600485,0.00014794,2]
[383704047,1757094662532,-480.0,0.00014794,2]
[383704048,1757094662551,-480.0,0.00014794,2]
[383704049,1757094662573,-480.0,0.00014794,2]
[383704050,1757094662585,-480.0,0.00014794,2]
[383704051,1757094662603,-480.0,0.00014794,2]
[383704052,1757094662618,-343.14,0.00014794,2]
[383704053,1757094662635,-496.72,0.00014794,2]
[383704054,1757094662650,-480.0,0.00014794,2]
[383704055,1757094662665,-480.0,0.00014794,2]
[383704056,1757094662681,-480.0,0.00014794,2]
[383704057,1757094662695,-480.0,0.00014794,2]
[383704058,1757094662709,-480.0,0.00014794,2]
[383704059,1757094662725,-480.0,0.00014794,2]
[383704060,1757094662740,-480.0,0.00014794,2]
[383704061,1757094662755,-480.0,0.00014794,2]
[383704062,1757094662770,-480.0,0.00014794,2]
[383704063,1757094662785,-480.0,0.00014794,2]
[383704064,1757094662799,-480.0,0.00014794,2]
[383704065,1757094662814,-480.0,0.00014794,2]
[383704066,1757094662828,-480.0,0.00014794,2]
[383704067,1757094662842,-480.0,0.00014794,2]
[383704068,1757094662856,-552.1,0.00014794,2]
[383704069,1757094662871,-151.0,0.00014794,2]
[383704070,1757094662884,-209.033521,0.00014794,2]
[383704071,1757094662899,-592.61,0.00014794,2]
[383704072,1757094662912,-209.033521,0.00014794,2]
[383704073,1757094662927,-480.0,0.00014794,2]
[383704074,1757094662942,-209.033521,0.00014794,2]
[383704075,1757094662957,-209.033521,0.00014794,2]
[383704076,1757094662971,-480.0,0.00014794,2]
[383704077,1757094662986,-463.70404932,0.00014794,2]
[383704078,1757094663001,-151.0,0.00014794,2]
[383704079,1757094663015,-480.0,0.00014794,2]
[383704080,1757094663030,-151.0,0.00014794,2]
[383704081,1757094663045,-180.24916,0.00014794,2]
[383704082,1757094663060,-180.24916,0.00014794,2]
[383704083,1757094663075,-151.0,0.00014794,2]
[383704084,1757094663091,-180.24916,0.00014794,2]
[383704085,1757094663106,-480.0,0.00014794,2]
[383704086,1757094663122,-237.0284,0.00014794,2]
[383704087,1757094663137,-480.0,0.00014794,2]
[383704088,1757094663154,-180.24916,0.00014794,2]
[383704089,1757094663172,-480.0,0.00014794,2]
[383704090,1757094663287,-480.0,0.00014794,2]
[383704091,1757094663298,-480.0,0.00014794,2]
[383704092,1757094663306,-151.0,0.00014794,2]
[383704093,1757094663315,-220.77,0.00014794,2]
[383704094,1757094663326,-480.0,0.00014794,2]
[383704095,1757094663336,-480.0,0.00014794,2]
[383704096,1757094663347,-324.61271457,0.00014794,2]
[383704097,1757094663357,-480.0,0.00014794,2]
[383704098,1757094663366,-480.0,0.00014794,2]
[383704099,1757094663377,-480.0,0.00014794,2]
[383704100,1757094663387,-480.0,0.00014794,2]
[383704101,1757094663397,-480.0,0.00014794,2]
[383704102,1757094663408,-480.0,0.00014794,2]
[383704103,1757094663420,-480.0,0.00014794,2]
[383704104,1757094663430,-480.0,0.00014794,2]
[383704105,1757094663440,-480.0,0.00014794,2]
[383704106,1757094663450,-480.0,0.00014794,2]
[383704107,1757094663460,-480.0,0.00014794,2]
[383704108,1757094663470,-480.0,0.00014794,2]
[383704109,1757094663480,-480.0,0.00014794,2]
[383704110,1757094663490,-480.0,0.00014794,2]
[383704111,1757094663499,-480.0,0.00014794,2]
[383704112,1757094663509,-480.0,0.00014794,2]
[383704113,1757094663519,-372.56,0.00014794,2]
[383704114,1757094663529,-480.0,0.00014794,2]
[383704115,1757094663539,-532.57523181,0.00014794,2]
[383704116,1757094663548,-1136.9,0.00014794,2]
[383704117,1757094663562,-480.0,0.00014794,2]
[383704118,1757094663571,-480.0,0.00014794,2]
[383704119,1757094663582,-480.0,0.00014794,2]
[383704120,1757094663591,-1507.58,0.00014794,2]
[383704121,1757094663601,-480.0,0.00014794,2]
[383704122,1757094663611,-563.3,0.00014794,2]
[383704123,1757094663621,-480.0,0.00014794,2]
[383704124,1757094663631,-480.0,0.00014794,2]
[383704125,1757094663642,-480.0,0.00014794,2]
[383704126,1757094663653,-480.0,0.00014794,2]
[383704127,1757094663663,-480.0,0.00014794,2]
[383704128,1757094663675,-2898.97,0.00014794,2]
[383704129,1757094663686,-480.0,0.00014794,2]
[383704130,1757094663696,-655.44,0.00014794,2]
[383704131,1757094663706,-480.0,0.00014794,2]
[383704132,1757094663715,-480.0,0.00014794,2]
[383704133,1757094663725,-4096.38,0.00014794,2]
[383704134,1757094663734,-480.0,0.00014794,2]
[383704135,1757094663744,-480.0,0.00014794,2]
[383704136,1757094663753,-1184.53,0.00014794,2]
[383704137,1757094663763,-1116.44,0.00014794,2]
[383704138,1757094663773,-480.0,0.00014794,2]
[383704139,1757094663782,-480.0,0.00014794,2]
[383704140,1757094663792,-480.0,0.00014794,2]
[383704141,1757094663802,-1910.81,0.00014794,2]
[383704142,1757094663812,-927.22,0.00014794,2]
[383704143,1757094663821,-480.0,0.00014794,2]
[383704144,1757094663831,-267.64009041,0.00014794,2]
[383704145,1757094663841,-480.0,0.00014794,2]
[383704146,1757094663850,-480.0,0.00014794,2]
[383704147,1757094663860,-480.0,0.00014794,2]
[383704148,1757094663871,-1180.02,0.00014794,2]
[383704149,1757094663881,-480.0,0.00014794,2]
[383704150,1757094663891,-480.0,0.00014794,2]
[383704151,1757094663901,-161.329675,0.00014794,2]
[383704152,1757094663911,-161.329675,0.00014794,2]
[383704153,1757094663924,-532.74,0.00014794,2]
[383704154,1757094663934,-161.329675,0.00014794,2]
[383704155,1757094663946,-480.0,0.00014794,2]
[383704156,1757094663956,-646.433611,0.00014794,2]
[383704157,1757094663966,-161.329683,0.00014794,2]
[383704158,1757094663978,-646.433611,0.00014794,2]
[383704159,1757094663987,-646.433611,0.00014794,2]
[383704160,1757094663998,-646.433606,0.00014794,2]
[383704161,1757094664009,-2568.51,0.00014794,2]
[383704162,1757094664020,-480.0,0.00014794,2]
[383704163,1757094664030,-480.0,0.00014794,2]
[383704164,1757094664040,-480.0,0.00014794,2]
[383704165,1757094664050,-480.0,0.00014794,2]
[383704166,1757094664060,-480.0,0.00014794,2]
[383704167,1757094664069,-930.833446,0.00014794,2]
[383704168,1757094664080,-930.833446,0.00014794,2]
[383704169,1757094664090,-930.833446,0.00014794,2]
[383704170,1757094664101,-930.833444,0.00014794,2]
[383704171,1757094664111,-508.93,0.00014794,2]
[383704172,1757094664122,-480.0,0.00014794,2]
[383704173,1757094664132,-480.0,0.00014794,2]
[383704174,1757094664142,-1072.85,0.00014794,2]
[383704175,1757094664152,-1225.35,0.00014794,2]
[383704176,1757094664162,-520.18,0.00014794,2]
[383704177,1757094664173,-1185.83,0.00014794,2]
[383704178,1757094664183,-480.0,0.00014794,2]
[383704179,1757094664193,-593.84443505,0.00014794,2]
[383704180,1757094664203,-898.48,0.00014794,2]
[383704181,1757094664213,-480.0,0.00014794,2]
[383704182,1757094664222,-1084.52,0.00014794,2]
[383704183,1757094664232,-480.0,0.00014794,2]
[383704184,1757094664241,-889.22,0.00014794,2]
[383704185,1757094664251,-480.0,0.00014794,2]
[383704186,1757094664261,-480.0,0.00014794,2]
[383704187,1757094664271,-7222.37,0.00014794,2]
[383704188,1757094664282,-480.0,0.00014794,2]
[383704189,1757094664292,-480.0,0.00014794,2]
[383704190,1757094664302,-480.0,0.00014794,2]
[383704191,1757094664312,-186.848109,0.00014794,2]
[383704192,1757094664322,-480.0,0.00014794,2]
[383704193,1757094664333,-539.09,0.00014794,2]
[383704194,1757094664343,-480.0,0.00014794,2]
[383704195,1757094664352,-494.93,0.00014794,2]
[383704196,1757094664361,-151.0,0.00014794,2]
[383704197,1757094664434,-151.0,0.00014794,2]
[383704198,1757094664444,-151.0,0.00014794,2]
[383704199,1757094664453,-226.02914947,0.00014803,2]
[383704200,1757094664463,-500.0,0.00014806,2]
[383704201,1757094664473,-500.0,0.00014806,2]
[383704202,1757094664483,-620.73284585,0.00014806,2]
[383704203,1757094664492,-500.0,0.00014806,2]
[383704204,1757094664501,-500.0,0.00014806,2]
[383704205,1757094664511,-500.0,0.00014806,2]
[383704206,1757094664520,-500.0,0.00014806,2]
[383704207,1757094664530,-500.0,0.00014806,2]
[383704208,1757094664539,-500.0,0.00014806,2]
[383704209,1757094664550,-1137.07224249,0.00014857,2]
[383704210,1757094664564,-4548.28896996,0.00014857,2]
[383704211,1757094664574,-940.40398529,0.00014857,2]
[383704212,1757094664583,-3757.8543252,0.00014857,2]
[383704213,1757094664593,-151.0,0.000149,2]
[383704214,1757094664602,-504.06501436,0.000149,2]
[383704215,1757094664612,-720.0,0.00014963,2]
[383704216,1757094664622,-11996.54639781,0.00014968,2]
[383704217,1757094664632,-250.0,0.00015,2]
[383704218,1757094664642,-151.0,0.00015015,2]
[383704219,1757094664652,-151.0,0.00015015,2]
[383704220,1757094664662,-151.0,0.00015015,2]
[383704221,1757094664671,-186.857002,0.00015015,2]
[383704222,1757094664680,-186.857002,0.00015015,2]
[383704223,1757094664691,-186.857002,0.00015015,2]
[383704224,1757094664701,-186.857002,0.00015015,2]
[383704225,1757094664712,-151.0,0.00015015,2]
[383704226,1757094664722,-308.0,0.00015029,2]
[383704227,1757094664731,-309.33332027,0.00015029,2]
[383704228,1757094664740,-308.0,0.00015029,2]
[383704229,1757094664749,-157.0,0.00015029,2]
[383704230,1757094664759,-157.0,0.00015029,2]
[383704231,1757094664768,-157.0,0.00015029,2]
[383704232,1757094664778,-157.0,0.00015029,2]
[383704233,1757094664787,-157.0,0.00015029,2]
[383704234,1757094664798,-197.12985849,0.00015029,2]
[383704235,1757094664807,-309.17108138,0.00015029,2]
[383704236,1757094664817,-302.14616059,0.00015029,2]
[383704237,1757094664826,-157.0,0.00015029,2]
[383704238,1757094664836,-275.55266465,0.00015029,2]
[383704239,1757094664845,-229.71658463,0.00015029,2]
[383704240,1757094664855,-157.0,0.00015029,2]
[383704241,1757094664864,-187.26961974,0.00015029,2]
[383704242,1757094664874,-302.56355204,0.00015029,2]
[383704243,1757094664885,-302.16439406,0.00015029,2]
[383704244,1757094664895,-157.0,0.00015029,2]
[383704245,1757094664905,-157.0,0.00015029,2]
[383704246,1757094664915,-157.0,0.00015029,2]
[383704247,1757094664924,-559.0,0.00015029,2]
[383704248,1757094664935,-157.0,0.00015029,2]
[383704249,1757094664945,-157.0,0.00015029,2]
[383704250,1757094664955,-157.0,0.00015029,2]
[383704251,1757094664967,-157.0,0.00015029,2]
[383704252,1757094664978,-194.11360137,0.00015029,2]
[383704253,1757094664988,-157.0,0.00015029,2]
[383704254,1757094664998,-302.0,0.00015029,2]
[383704255,1757094665008,-157.0,0.00015029,2]
[383704256,1757094665018,-199.81084819,0.00015029,2]
[383704257,1757094665027,-303.47729355,0.00015029,2]
[383704258,1757094665037,-800.0,0.00015035,2]
[383704259,1757094665047,-151.0,0.00015047,2]
[383704260,1757094665059,-480.0,0.00015068,2]
[383704261,1757094665075,-480.0,0.00015068,2]
[383704262,1757094665085,-626.37993722,0.00015068,2]
[383704263,1757094665094,-392.47212003,0.00015068,2]
[383704264,1757094665105,-480.0,0.00015068,2]
[383704265,1757094665116,-480.0,0.00015068,2]
[383704266,1757094665126,-480.0,0.00015068,2]
[383704267,1757094665136,-435.11,0.00015068,2]
[383704268,1757094665146,-480.0,0.00015068,2]
[383704269,1757094665156,-480.0,0.00015068,2]
[383704270,1757094665166,-480.0,0.00015068,2]
[383704271,1757094665177,-480.0,0.00015068,2]
[383704272,1757094665187,-480.0,0.00015068,2]
[383704273,1757094665198,-269.16,0.00015068,2]
[383704274,1757094665208,-480.0,0.00015068,2]
[383704275,1757094665219,-480.0,0.00015068,2]
[383704276,1757094665229,-151.0,0.00015068,2]
[383704277,1757094665239,-326.3,0.00015068,2]
[383704278,1757094665250,-592.61,0.00015068,2]
[383704279,1757094665259,-491.17609362,0.00015068,2]
[383704280,1757094665269,-480.0,0.00015068,2]
[383704281,1757094665278,-480.0,0.00015068,2]
[383704282,1757094665289,-480.0,0.00015068,2]
[383704283,1757094665299,-480.0,0.00015068,2]
[383704284,1757094665307,-480.0,0.00015068,2]
[383704285,1757094665317,-480.0,0.00015068,2]
[383704286,1757094665327,-480.0,0.00015068,2]
[383704287,1757094665337,-151.0,0.00015068,2]
[383704288,1757094665346,-480.0,0.00015068,2]
[383704289,1757094665356,-480.0,0.00015068,2]
[383704290,1757094665367,-151.0,0.00015068,2]
[383704291,1757094665376,-161.46713333,0.00015068,2]
[383704292,1757094665385,-480.0,0.00015068,2]
[383704293,1757094665395,-286.86,0.00015068,2]
[383704294,1757094665405,-449.70201307,0.00015068,2]
[383704295,1757094665415,-480.0,0.00015068,2]
[383704296,1757094665425,-480.0,0.00015068,2]
[383704297,1757094665435,-480.0,0.00015068,2]
[383704298,1757094665445,-480.0,0.00015068,2]
[383704299,1757094665455,-480.0,0.00015068,2]
[383704300,1757094665464,-480.0,0.00015068,2]
[383704301,1757094665474,-480.0,0.00015068,2]
[383704302,1757094665485,-480.0,0.00015068,2]
[383704303,1757094665495,-480.0,0.00015068,2]
[383704304,1757094665505,-480.0,0.00015068,2]
[383704305,1757094665516,-188.777586,0.00015068,2]
[383704306,1757094665527,-480.0,0.00015068,2]
[383704307,1757094665537,-151.0,0.00015068,2]
[383704308,1757094665547,-1136.9,0.00015068,2]
[383704309,1757094665561,-151.0,0.00015068,2]
[383704310,1757094665576,-151.0,0.00015068,2]
[383704311,1757094665585,-151.0,0.00015068,2]
[383704312,1757094665595,-480.0,0.00015068,2]
[383704313,1757094665606,-283.041675,0.00015068,2]
[383704314,1757094665616,-1507.58,0.00015068,2]
[383704315,1757094665626,-480.0,0.00015068,2]
[383704316,1757094665636,-563.3,0.00015068,2]
[383704317,1757094665646,-151.0,0.00015068,2]
[383704318,1757094665656,-151.0,0.00015068,2]
[383704319,1757094665666,-151.0,0.00015068,2]
[383704320,1757094665678,-444.04604287,0.00015068,2]
[383704321,1757094665838,-35.95395713,0.00015068,2]
[383704322,1757094665848,-480.0,0.00015068,2]
[383704323,1757094665859,-602.42,0.00015068,2]
[383704324,1757094665869,-548.977681,0.00015068,2]
[383704325,1757094665879,-557.94,0.00015068,2]
[383704326,1757094665889,-1807.36707551,0.00015068,2]
[383704327,1757094666669,-16.36558375,0.00013698,2]
[383704328,1757094667142,-463.63441625,0.00013698,2]
[383704329,1757094667153,-480.0,0.00013698,2]
[383704330,1757094667163,-480.0,0.00013698,2]
[383704331,1757094667173,-480.0,0.00013698,2]
[383704332,1757094667183,-461.73894877,0.00013698,2]
[383704333,1757094667193,-480.0,0.00013698,2]
[383704334,1757094667202,-480.0,0.00013698,2]
[383704335,1757094667212,-151.0,0.00013764,2]
[383704336,1757094667222,-151.0,0.00013764,2]
[383704337,1757094667232,-151.0,0.00013764,2]
[383704338,1757094667241,-20746.26328358,0.00013764,2]
[383704339,1757094667251,-151.0,0.00013764,2]
[383704340,1757094667261,-151.0,0.00013764,2]
[383704341,1757094667271,-151.0,0.00013764,2]
[383704342,1757094667280,-151.0,0.00013764,2]
[383704343,1757094667289,-151.0,0.00013764,2]
[383704344,1757094667300,-482.53308073,0.00013972,2]
[383704345,1757094667309,-151.0,0.00013972,2]
[383704346,1757094667319,-480.0,0.00013972,2]
[383704347,1757094667329,-151.0,0.00013972,2]
[383704348,1757094667341,-151.0,0.00014204,2]
[383704349,1757094667350,-3027.79050709,0.00014204,2]
[383704350,1757094667360,-480.0,0.00014246,2]
[383704351,1757094667370,-151.0,0.00014246,2]
[383704352,1757094667380,-3139.81875585,0.00014259,2]
[383704353,1757094667389,-1045.62228313,0.00014314,2]
[383704354,1757094667398,-151.0,0.0001452,2]
[383704355,1757094667408,-480.0,0.0001452,2]
[383704356,1757094667417,-151.0,0.0001452,2]
[383704357,1757094667427,-151.0,0.00014794,2]
[383704358,1757094667436,-480.0,0.00014794,2]
[383704359,1757094667446,-94.41238173,0.00014794,2]
[383704360,1757094667471,-480.0,0.00013698,2]
[383704361,1757094667481,-480.0,0.00013698,2]
[383704362,1757094667491,-56.58761827,0.00014794,2]
[383704363,1757094667502,-1091.60292449,0.00015068,2]
[383704364,1757094667511,-548.977681,0.00015068,2]
[383704365,1757094667519,-548.977681,0.00015068,2]
[383704366,1757094667528,-208.67,0.00015068,2]
[383704367,1757094667536,-655.44,0.00015068,2]
[383704368,1757094667545,-548.977681,0.00015068,2]
[383704369,1757094667556,-480.0,0.00015068,2]
[383704370,1757094667568,-480.0,0.00015068,2]
[383704371,1757094667577,-4096.38,0.00015068,2]
[383704372,1757094667586,-480.0,0.00015068,2]
[383704373,1757094667596,-480.0,0.00015068,2]
[383704374,1757094667606,-1184.53,0.00015068,2]
[383704375,1757094667615,-1116.44,0.00015068,2]
[383704376,1757094667625,-480.0,0.00015068,2]
[383704377,1757094667635,-1910.81,0.00015068,2]
[383704378,1757094667645,-927.22,0.00015068,2]
[383704379,1757094667655,-480.0,0.00015068,2]
[383704380,1757094667665,-480.0,0.00015068,2]
[383704381,1757094667674,-480.0,0.00015068,2]
[383704382,1757094667684,-480.0,0.00015068,2]
[383704383,1757094667693,-1180.02,0.00015068,2]
[383704384,1757094667703,-480.0,0.00015068,2]
[383704385,1757094667712,-480.0,0.00015068,2]
[383704386,1757094667722,-532.74,0.00015068,2]
[383704387,1757094667743,-480.0,0.00015068,2]
[383704388,1757094667753,-2568.51,0.00015068,2]
[383704389,1757094667763,-480.0,0.00015068,2]
[383704390,1757094667772,-480.0,0.00015068,2]
[383704391,1757094667783,-480.0,0.00015068,2]
[383704392,1757094667793,-480.0,0.00015068,2]
[383704393,1757094667803,-480.0,0.00015068,2]
[383704394,1757094667813,-508.93,0.00015068,2]
[383704395,1757094667823,-480.0,0.00015068,2]